fUST/lending_fUST_20240817
["ID","MTS","AMOUNT","RATE_DAILY","PERIOD"]
[335142598,1723890663564,-529.2,0.00023287,2]
[335142599,1723890663574,-500.0,0.00023287,2]
[335142600,1723890663583,-3128.21,0.00023287,2]
[335142601,1723890663593,-500.0,0.00023287,2]
[335142602,1723890663603,-500.0,0.00023287,2]
[335142603,1723890663612,-500.55,0.00023287,2]
[335142604,1723890663622,-500.0,0.00023287,2]
[335142605,1723890663632,-500.0,0.00023287,2]
[335142606,1723890663641,-500.0,0.00023287,2]
[335142607,1723890663651,-500.0,0.00023287,2]
[335142608,1723890663660,-500.0,0.00023287,2]
[335142609,1723890663670,-500.0,0.00023287,2]
[335142610,1723890663679,-573.58558628,0.00023287,2]
[335142611,1723890663689,-500.0,0.00023287,2]
[335142612,1723890663698,-500.0,0.00023287,2]
[335142613,1723890663707,-500.0,0.00023287,2]
[335142614,1723890663717,-1197.09,0.00023287,2]
[335142615,1723890663727,-663.25,0.00023287,2]
[335142616,1723890663736,-500.0,0.00023287,2]
[335142617,1723890663746,-500.0,0.00023287,2]
[335142618,1723890663755,-553.57,0.00023287,2]
[335142619,1723890663765,-500.0,0.00023287,2]
[335142620,1723890663774,-500.0,0.00023287,2]
[335142621,1723890663783,-500.0,0.00023287,2]
[335142622,1723890663793,-833.32,0.00023287,2]
[335142623,1723890663802,-500.0,0.00023287,2]
[335142624,1723890663811,-500.0,0.00023287,2]
[335142625,1723890663821,-593.58,0.00023287,2]
[335142626,1723890663830,-500.0,0.00023287,2]
[335142627,1723890663840,-635.22,0.00023287,2]
[335142628,1723890663850,-500.0,0.00023287,2]
[335142629,1723890663859,-500.0,0.00023287,2]
[335142630,1723890663868,-307.68339911,0.00023287,2]
[335142631,1723890663878,-1678.22,0.00023287,2]
[335142632,1723890663887,-500.0,0.00023287,2]
[335142633,1723890663897,-523.73,0.00023287,2]
[335142634,1723890663906,-500.0,0.00023287,2]
[335142635,1723890663916,-929.06,0.00023287,2]
[335142636,1723890663926,-500.0,0.00023287,2]
[335142637,1723890663935,-500.0,0.00023287,2]
[335142638,1723890663944,-500.0,0.00023287,2]
[335142639,1723890663954,-5055.53,0.00023287,2]
[335142640,1723890663963,-500.0,0.00023287,2]
[335142641,1723890663973,-726.16,0.00023287,2]
[335142642,1723890663982,-500.0,0.00023287,2]
[335142643,1723890663991,-500.0,0.00023287,2]
[335142644,1723890664001,-651.69,0.00023287,2]
[335142645,1723890664011,-1917.36,0.00023287,2]
[335142646,1723890664020,-500.0,0.00023287,2]
[335142647,1723890664030,-500.0,0.00023287,2]
[335142648,1723890664042,-785.84,0.00023287,2]
[335142649,1723890664052,-542.57,0.00023287,2]
[335142650,1723890664062,-500.0,0.00023287,2]
[335142651,1723890664071,-501.64,0.00023287,2]
[335142652,1723890664081,-1010.89,0.00023287,2]
[335142653,1723890664090,-508.64640729,0.00023287,2]
[335142654,1723890664099,-605.21,0.00023287,2]
[335142655,1723890664109,-500.0,0.00023287,2]
[335142656,1723890664118,-500.0,0.00023287,7]
[335142657,1723890664129,-530.09,0.00023287,2]
[335142658,1723890664140,-751.83,0.00023287,2]
[335142659,1723890664260,-500.0,0.00023287,2]
[335142660,1723890664272,-1556.4,0.00023287,2]
[335142661,1723890664281,-500.23,0.00023287,2]
[335142662,1723890664290,-752.59,0.00023287,2]
[335142663,1723890664300,-611.43,0.00023287,2]
[335142664,1723890664310,-500.0,0.00023287,2]
[335142665,1723890664319,-500.0,0.00023287,2]
[335142666,1723890664329,-500.0,0.00023287,2]
[335142667,1723890664339,-500.0,0.00023287,2]
[335142668,1723890664348,-668.57,0.00023287,2]
[335142669,1723890664358,-500.0,0.00023287,2]
[335142670,1723890664368,-500.0,0.00023287,2]
[335142671,1723890664378,-842.04,0.00023287,2]
[335142672,1723890664389,-794.65,0.00023287,2]
[335142673,1723890664401,-500.0,0.00023287,2]
[335142674,1723890664410,-500.0,0.00023287,2]
[335142675,1723890664420,-500.0,0.00023287,2]
[335142676,1723890664430,-500.0,0.00023287,2]
[335142677,1723890664439,-500.0,0.00023287,2]
[335142678,1723890664448,-500.0,0.00023287,2]
[335142679,1723890664458,-533.77,0.00023287,2]
[335142680,1723890664467,-545.57,0.00023287,2]
[335142681,1723890664476,-588.4,0.00023287,2]
[335142682,1723890664486,-500.0,0.00023287,2]
[335142683,1723890664496,-618.32,0.00023287,2]
[335142684,1723890664507,-500.0,0.00023287,2]
[335142685,1723890664516,-500.28,0.00023287,2]
[335142686,1723890664527,-1215.121657,0.00023287,7]
[335142687,1723890664537,-1215.121657,0.00023287,7]
[335142688,1723890664548,-885.0,0.00023287,2]
[335142689,1723890664558,-864.62,0.00023287,2]
[335142690,1723890664569,-514.86,0.00023287,2]
[335142691,1723890664579,-553.37,0.00023287,2]
[335142692,1723890664589,-693.53,0.00023287,2]
[335142693,1723890664599,-619.18,0.00023287,2]
[335142694,1723890664610,-1400.99,0.00023287,2]
[335142695,1723890664619,-500.0,0.00023287,2]
[335142696,1723890664630,-1038.37,0.00023287,2]
[335142697,1723890664640,-1018.27,0.00023287,2]
[335142698,1723890664650,-500.0,0.00023287,2]
[335142699,1723890664660,-500.0,0.00023287,2]
[335142700,1723890664670,-517.68,0.00023287,2]
[335142701,1723890664679,-500.0,0.00023287,2]
[335142702,1723890664691,-530.93,0.00023287,2]
[335142703,1723890664702,-655.89,0.00023287,2]
[335142704,1723890664712,-540.97547497,0.00023287,2]
[335142705,1723890664723,-500.0,0.00023287,2]
[335142706,1723890664734,-591.89,0.00023287,2]
[335142707,1723890664743,-500.0,0.00023287,2]
[335142708,1723890664754,-1232.8,0.00023287,2]
[335142709,1723890664764,-500.0,0.00023287,2]
[335142710,1723890664774,-500.0,0.00023287,2]
[335142711,1723890664786,-500.0,0.00023287,2]
[335142712,1723890664796,-500.0,0.00023287,2]
[335142713,1723890664807,-543.94,0.00023287,2]
[335142714,1723890664817,-571.25,0.00023287,2]
[335142715,1723890664827,-500.0,0.00023287,2]
[335142716,1723890664836,-503.76,0.00023287,2]
[335142717,1723890664846,-725.37,0.00023287,2]
[335142718,1723890664856,-500.0,0.00023287,2]
[335142719,1723890664866,-500.0,0.00023287,2]
[335142720,1723890664875,-582.58,0.00023287,2]
[335142721,1723890664885,-739.32,0.00023287,2]
[335142722,1723890664894,-1438.68,0.00023287,2]
[335142723,1723890664904,-500.0,0.00023287,2]
[335142724,1723890664914,-2248.55,0.00023287,2]
[335142725,1723890664924,-769.77,0.00023287,2]
[335142726,1723890664934,-657.64,0.00023287,2]
[335142727,1723890664944,-590.2,0.00023287,2]
[335142728,1723890664955,-788.03,0.00023287,2]
[335142729,1723890664966,-2904.2,0.00023287,2]
[335142730,1723890664977,-500.0,0.00023287,2]
[335142731,1723890664987,-500.0,0.00023287,2]
[335142732,1723890664996,-500.0,0.00023287,2]
[335142733,1723890665007,-500.0,0.00023287,2]
[335142734,1723890665019,-500.0,0.00023287,2]
[335142735,1723890665028,-737.6,0.00023287,2]
[335142736,1723890665041,-1067.82,0.00023287,2]
[335142737,1723890665051,-22187.11,0.00023287,2]
[335142738,1723890665060,-6948.85,0.00023287,2]
[335142739,1723890665070,-1369.92,0.00023287,2]
[335142740,1723890665080,-668.08,0.00023287,2]
[335142741,1723890665090,-1067.8,0.00023287,2]
[335142742,1723890665100,-2952.04,0.00023287,2]
[335142743,1723890665110,-1761.64,0.00023287,2]
[335142744,1723890665121,-500.0,0.00023287,2]
[335142745,1723890665130,-1088.19,0.00023287,2]
[335142746,1723890665140,-500.0,0.00023287,2]
[335142747,1723890665149,-500.0,0.00023287,2]
[335142748,1723890665158,-616.8,0.00023287,2]
[335142749,1723890665167,-1664.5,0.00023287,2]
[335142750,1723890665177,-500.0,0.00023287,2]
[335142751,1723890665187,-869.36,0.00023287,2]
[335142752,1723890665197,-905.39,0.00023287,2]
[335142753,1723890665207,-1108.77,0.00023287,2]
[335142754,1723890665217,-500.0,0.00023287,2]
[335142755,1723890665226,-500.0,0.00023287,2]
[335142756,1723890665236,-2520.02,0.00023287,2]
[335142757,1723890665246,-569.78,0.00023287,2]
[335142758,1723890665256,-500.0,0.00023287,2]
[335142759,1723890665266,-3853.14,0.00023287,2]
[335142760,1723890665276,-2333.05,0.00023287,2]
[335142761,1723890665287,-679.93,0.00023287,2]
[335142762,1723890665297,-500.0,0.00023287,2]
[335142763,1723890665307,-500.0,0.00023287,2]
[335142764,1723890665317,-521.59,0.00023287,2]
[335142765,1723890665327,-2770.69,0.00023287,2]
[335142766,1723890665336,-692.79,0.00023287,2]
[335142767,1723890665346,-500.28,0.00023287,2]
[335142768,1723890665355,-500.0,0.00023287,2]
[335142769,1723890665365,-500.0,0.00023287,2]
[335142770,1723890665374,-1389.6,0.00023287,2]
[335142771,1723890665384,-500.0,0.00023287,2]
[335142772,1723890665393,-500.0,0.00023287,2]
[335142773,1723890665403,-4570.81,0.00023287,2]
[335142774,1723890665412,-531.66,0.00023287,2]
[335142775,1723890665421,-500.0,0.00023287,2]
[335142776,1723890665431,-500.0,0.00023287,2]
[335142777,1723890665443,-821.0,0.00023299,2]
[335142778,1723890665455,-150.112233,0.000234,3]
[335142779,1723890665464,-810.49,0.0002356,2]
[335142780,1723890665475,-500.0,0.0002356,2]
[335142781,1723890665484,-500.0,0.0002356,2]
[335142782,1723890665494,-500.0,0.0002356,2]
[335142783,1723890665504,-1302.46,0.0002356,2]
[335142784,1723890665514,-3815.52,0.0002356,2]
[335142785,1723890665525,-1463.19,0.0002356,2]
[335142786,1723890665537,-1313.81,0.0002356,2]
[335142787,1723890665548,-564.51537432,0.0002356,2]
[335142788,1723890665558,-557.32,0.0002356,2]
[335142789,1723890665569,-500.0,0.0002356,2]
[335142790,1723890665581,-451.56575462,0.0002356,2]
[335142791,1723890665591,-217.668022,0.0002356,7]
[335142792,1723890665602,-864.264814,0.0002356,7]
[335142793,1723890665612,-4587.93,0.0002356,2]
[335142794,1723890665624,-1281.48,0.0002356,2]
[335142795,1723890665634,-217.668022,0.0002356,7]
[335142796,1723890665646,-864.264814,0.0002356,7]
[335142797,1723890665658,-500.0,0.0002356,2]
[335142798,1723890665668,-1296.99,0.0002356,2]
[335142799,1723890665681,-500.0,0.0002356,2]
[335142800,1723890665690,-1380.37,0.0002356,2]
[335142801,1723890665702,-500.0,0.0002356,2]
[335142802,1723890665712,-3297.99,0.0002356,2]
[335142803,1723890665722,-500.0,0.0002356,2]
[335142804,1723890665731,-2369.1,0.0002356,2]
[335142805,1723890665741,-500.0,0.0002356,2]
[335142806,1723890665750,-3259.07,0.0002356,2]
[335142807,1723890665761,-555.03413606,0.0002356,2]
[335142808,1723890665771,-500.0,0.0002356,2]
[335142809,1723890665781,-2059.73,0.0002356,2]
[335142810,1723890665791,-558.53,0.0002356,2]
[335142811,1723890665802,-500.0,0.0002356,2]
[335142812,1723890665813,-500.0,0.0002356,2]
[335142813,1723890665823,-500.0,0.0002356,2]
[335142814,1723890665833,-1089.27,0.0002356,2]
[335142815,1723890665843,-500.0,0.0002356,2]
[335142816,1723890665853,-500.0,0.0002356,2]
[335142817,1723890665864,-4118.73,0.0002356,2]
[335142818,1723890665874,-537.86,0.0002356,2]
[335142819,1723890665884,-500.0,0.0002356,2]
[335142820,1723890665894,-495.81554571,0.00023561,2]
[335142821,1723890665904,-500.0,0.00023561,2]
[335142822,1723890665913,-500.0,0.00023561,2]
[335142823,1723890665928,-500.0,0.00023561,2]
[335142824,1723890665938,-500.0,0.00023561,2]
[335142825,1723890666037,-500.0,0.00023561,2]
[335142826,1723890666052,-500.0,0.00023561,2]
[335142827,1723890666062,-627.61760854,0.00023561,2]
[335142828,1723890666071,-500.0,0.00023561,2]
[335142829,1723890666081,-500.0,0.00023561,2]
[335142830,1723890666091,-500.0,0.00023561,2]
[335142831,1723890666101,-500.0,0.00023561,2]
[335142832,1723890666111,-500.0,0.00023561,2]
[335142833,1723890666120,-500.0,0.00023561,2]
[335142834,1723890666130,-500.0,0.00023561,2]
[335142835,1723890666141,-500.0,0.00023561,2]
[335142836,1723890666150,-500.0,0.00023561,2]
[335142837,1723890666162,-500.0,0.00023561,2]
[335142838,1723890666172,-500.0,0.00023561,2]
[335142839,1723890666183,-500.0,0.00023561,2]
[335142840,1723890666194,-575.75,0.00023561,2]
[335142841,1723890666205,-500.0,0.00023561,2]
[335142842,1723890666215,-500.0,0.00023561,2]
[335142843,1723890666226,-500.0,0.00023561,2]
[335142844,1723890666236,-500.0,0.00023561,2]
[335142845,1723890666248,-500.0,0.00023561,2]
[335142846,1723890666259,-500.0,0.00023561,2]
[335142847,1723890666269,-500.0,0.00023561,2]
[335142848,1723890666279,-528.48,0.00023561,2]
[335142849,1723890666289,-500.0,0.00023561,2]
[335142850,1723890666299,-500.0,0.00023561,2]
[335142851,1723890666311,-500.0,0.00023561,2]
[335142852,1723890666320,-500.0,0.00023561,2]
[335142853,1723890666329,-500.0,0.00023561,2]
[335142854,1723890666339,-500.0,0.00023561,2]
[335142855,1723890666349,-500.0,0.00023561,2]
[335142856,1723890666362,-500.0,0.00023561,2]
[335142857,1723890666372,-500.0,0.00023561,2]
[335142858,1723890666383,-500.0,0.00023561,2]
[335142859,1723890666393,-500.0,0.00023561,2]
[335142860,1723890666404,-885.91,0.00023561,2]
[335142861,1723890666414,-500.0,0.00023561,2]
[335142862,1723890666426,-500.0,0.00023561,2]
[335142863,1723890666436,-500.0,0.00023561,2]
[335142864,1723890666447,-500.0,0.00023561,2]
[335142865,1723890666458,-500.0,0.00023561,2]
[335142866,1723890666467,-500.0,0.00023561,2]
[335142867,1723890666477,-500.0,0.00023561,2]
[335142868,1723890666487,-500.0,0.00023561,2]
[335142869,1723890666498,-500.0,0.00023561,2]
[335142870,1723890666508,-500.0,0.00023561,2]
[335142871,1723890666520,-500.0,0.00023561,2]
[335142872,1723890666530,-500.0,0.00023561,2]
[335142873,1723890666543,-500.0,0.00023561,2]
[335142874,1723890666553,-500.0,0.00023561,2]
[335142875,1723890666564,-642.6,0.00023561,2]
[335142876,1723890666576,-500.0,0.00023561,2]
[335142877,1723890666587,-529.2,0.00023561,2]
[335142878,1723890666596,-500.0,0.00023561,2]
[335142879,1723890666607,-3128.21,0.00023561,2]
[335142880,1723890666617,-500.0,0.00023561,2]
[335142881,1723890666627,-500.0,0.00023561,2]
[335142882,1723890666638,-500.55,0.00023561,2]
[335142883,1723890666648,-500.0,0.00023561,2]
[335142884,1723890666659,-500.0,0.00023561,2]
[335142885,1723890666671,-500.0,0.00023561,2]
[335142886,1723890666681,-500.0,0.00023561,2]
[335142887,1723890666691,-500.0,0.00023561,2]
[335142888,1723890666701,-500.0,0.00023561,2]
[335142889,1723890666711,-500.0,0.00023561,2]
[335142890,1723890666722,-500.0,0.00023561,2]
[335142891,1723890666733,-500.0,0.00023561,2]
[335142892,1723890666744,-1197.09,0.00023561,2]
[335142893,1723890666754,-663.25,0.00023561,2]
[335142894,1723890666764,-500.0,0.00023561,2]
[335142895,1723890666773,-553.57,0.00023561,2]
[335142896,1723890666783,-500.0,0.00023561,2]
[335142897,1723890666793,-500.0,0.00023561,2]
[335142898,1723890666802,-500.0,0.00023561,2]
[335142899,1723890666812,-833.32,0.00023561,2]
[335142900,1723890666821,-500.0,0.00023561,2]
[335142901,1723890666830,-593.58,0.00023561,2]
[335142902,1723890666840,-500.0,0.00023561,2]
[335142903,1723890666849,-635.22,0.00023561,2]
[335142904,1723890666858,-500.0,0.00023561,2]
[335142905,1723890666868,-500.0,0.00023561,2]
[335142906,1723890666878,-1678.22,0.00023561,2]
[335142907,1723890666889,-500.0,0.00023561,2]
[335142908,1723890666899,-523.73,0.00023561,2]
[335142909,1723890666909,-500.0,0.00023561,2]
[335142910,1723890666919,-929.06,0.00023561,2]
[335142911,1723890666928,-500.0,0.00023561,2]
[335142912,1723890666938,-500.0,0.00023561,2]
[335142913,1723890666948,-500.0,0.00023561,2]
[335142914,1723890666957,-5055.53,0.00023561,2]
[335142915,1723890666967,-500.0,0.00023561,2]
[335142916,1723890666977,-726.16,0.00023561,2]
[335142917,1723890666986,-500.0,0.00023561,2]
[335142918,1723890666996,-500.0,0.00023561,2]
[335142919,1723890667005,-651.69,0.00023561,2]
[335142920,1723890667014,-1917.36,0.00023561,2]
[335142921,1723890667024,-500.0,0.00023561,2]
[335142922,1723890667033,-500.0,0.00023561,2]
[335142923,1723890667047,-785.84,0.00023561,2]
[335142924,1723890667056,-542.57,0.00023561,2]
[335142925,1723890667066,-500.0,0.00023561,2]
[335142926,1723890667076,-501.64,0.00023561,2]
[335142927,1723890667086,-1010.89,0.00023561,2]
[335142928,1723890667095,-605.21,0.00023561,2]
[335142929,1723890667105,-500.0,0.00023561,2]
[335142930,1723890667114,-500.0,0.00023561,7]
[335142931,1723890667127,-530.09,0.00023561,2]
[335142932,1723890667140,-751.83,0.00023561,2]
[335142933,1723890667152,-500.0,0.00023561,2]
[335142934,1723890667164,-1556.4,0.00023561,2]
[335142935,1723890667174,-500.23,0.00023561,2]
[335142936,1723890667186,-752.59,0.00023561,2]
[335142937,1723890667198,-611.43,0.00023561,2]
[335142938,1723890667208,-500.0,0.00023561,2]
[335142939,1723890667218,-500.0,0.00023561,2]
[335142940,1723890667227,-439.15520646,0.00023561,2]
[335142941,1723890667239,-500.0,0.00023561,2]
[335142942,1723890667249,-668.57,0.00023561,2]
[335142943,1723890667261,-500.0,0.00023561,2]
[335142944,1723890667271,-500.0,0.00023561,2]
[335142945,1723890667282,-842.04,0.00023561,2]
[335142946,1723890667292,-794.65,0.00023561,2]
[335142947,1723890667303,-500.0,0.00023561,2]
[335142948,1723890667314,-500.0,0.00023561,2]
[335142949,1723890667325,-500.0,0.00023561,2]
[335142950,1723890667335,-500.0,0.00023561,2]
[335142951,1723890667345,-500.0,0.00023561,2]
[335142952,1723890667356,-533.77,0.00023561,2]
[335142953,1723890667365,-500.0,0.00023561,2]
[335142954,1723890667375,-545.57,0.00023561,2]
[335142955,1723890667384,-588.4,0.00023561,2]
[335142956,1723890667394,-500.0,0.00023561,2]
[335142957,1723890667404,-618.32,0.00023561,2]
[335142958,1723890667415,-500.0,0.00023561,2]
[335142959,1723890667425,-500.28,0.00023561,2]
[335142960,1723890667435,-885.0,0.00023561,2]
[335142961,1723890667445,-864.62,0.00023561,2]
[335142962,1723890667454,-514.86,0.00023561,2]
[335142963,1723890667463,-553.37,0.00023561,2]
[335142964,1723890667473,-693.53,0.00023561,2]
[335142965,1723890667483,-619.18,0.00023561,2]
[335142966,1723890667493,-1400.99,0.00023561,2]
[335142967,1723890667503,-500.0,0.00023561,2]
[335142968,1723890667513,-1038.37,0.00023561,2]
[335142969,1723890667522,-1018.27,0.00023561,2]
[335142970,1723890667532,-507.4126662,0.00023561,2]
[335142971,1723890667541,-500.0,0.00023561,2]
[335142972,1723890667551,-517.68,0.00023561,2]
[335142973,1723890667563,-500.0,0.00023561,2]
[335142974,1723890667574,-530.93,0.00023561,2]
[335142975,1723890667584,-655.89,0.00023561,2]
[335142976,1723890667594,-500.0,0.00023561,2]
[335142977,1723890667603,-591.89,0.00023561,2]
[335142978,1723890667704,-500.0,0.00023561,2]
[335142979,1723890667717,-1232.8,0.00023561,2]
[335142980,1723890667728,-500.0,0.00023561,2]
[335142981,1723890667739,-500.0,0.00023561,2]
[335142982,1723890667750,-500.0,0.00023561,2]
[335142983,1723890667762,-500.0,0.00023561,2]
[335142984,1723890667773,-543.94,0.00023561,2]
[335142985,1723890667785,-571.25,0.00023561,2]
[335142986,1723890667796,-500.0,0.00023561,2]
[335142987,1723890667807,-503.76,0.00023561,2]
[335142988,1723890667817,-725.37,0.00023561,2]
[335142989,1723890667826,-349.38600864,0.00023561,2]
[335142990,1723890667836,-500.0,0.00023561,2]
[335142991,1723890667845,-582.58,0.00023561,2]
[335142992,1723890667855,-739.32,0.00023561,2]
[335142993,1723890667866,-1438.68,0.00023561,2]
[335142994,1723890667876,-500.0,0.00023561,2]
[335142995,1723890667886,-2248.55,0.00023561,2]
[335142996,1723890667896,-769.77,0.00023561,2]
[335142997,1723890667905,-657.64,0.00023561,2]
[335142998,1723890667915,-590.2,0.00023561,2]
[335142999,1723890667925,-788.03,0.00023561,2]
[335143000,1723890667934,-2904.2,0.00023561,2]
[335143001,1723890667943,-500.0,0.00023561,2]
[335143002,1723890667953,-500.0,0.00023561,2]
[335143003,1723890667962,-500.0,0.00023561,2]
[335143004,1723890667973,-500.0,0.00023561,2]
[335143005,1723890667983,-500.0,0.00023561,2]
[335143006,1723890667993,-737.6,0.00023561,2]
[335143007,1723890668003,-1067.82,0.00023561,2]
[335143008,1723890668014,-22187.11,0.00023561,2]
[335143009,1723890668025,-6948.85,0.00023561,2]
[335143010,1723890668036,-1369.92,0.00023561,2]
[335143011,1723890668051,-668.08,0.00023561,2]
[335143012,1723890668062,-1067.8,0.00023561,2]
[335143013,1723890668072,-2952.04,0.00023561,2]
[335143014,1723890668085,-1761.64,0.00023561,2]
[335143015,1723890668095,-1088.19,0.00023561,2]
[335143016,1723890668106,-500.0,0.00023561,2]
[335143017,1723890668118,-500.0,0.00023561,2]
[335143018,1723890668127,-616.8,0.00023561,2]
[335143019,1723890668137,-1664.5,0.00023561,2]
[335143020,1723890668147,-500.0,0.00023561,2]
[335143021,1723890668156,-869.36,0.00023561,2]
[335143022,1723890668165,-905.39,0.00023561,2]
[335143023,1723890668175,-1108.77,0.00023561,2]
[335143024,1723890668184,-500.0,0.00023561,2]
[335143025,1723890668194,-500.0,0.00023561,2]
[335143026,1723890668203,-2520.02,0.00023561,2]
[335143027,1723890668213,-569.78,0.00023561,2]
[335143028,1723890668223,-500.0,0.00023561,2]
[335143029,1723890668232,-3853.14,0.00023561,2]
[335143030,1723890668242,-2333.05,0.00023561,2]
[335143031,1723890668251,-679.93,0.00023561,2]
[335143032,1723890668260,-500.0,0.00023561,2]
[335143033,1723890668270,-500.0,0.00023561,2]
[335143034,1723890668279,-521.59,0.00023561,2]
[335143035,1723890668289,-2770.69,0.00023561,2]
[335143036,1723890668299,-692.79,0.00023561,2]
[335143037,1723890668308,-500.28,0.00023561,2]
[335143038,1723890668318,-500.0,0.00023561,2]
[335143039,1723890668327,-500.0,0.00023561,2]
[335143040,1723890668337,-1389.6,0.00023561,2]
[335143041,1723890668346,-500.0,0.00023561,2]
[335143042,1723890668355,-500.0,0.00023561,2]
[335143043,1723890668365,-4570.81,0.00023561,2]
[335143044,1723890668374,-531.66,0.00023561,2]
[335143045,1723890668384,-500.0,0.00023561,2]
[335143046,1723890668394,-500.0,0.00023561,2]
[335143047,1723890668403,-200.0,0.00023573,2]
[335143048,1723890668413,-200.0,0.00023573,2]
[335143049,1723890668423,-150.112233,0.000238,2]
[335143050,1723890668433,-500.0,0.00023834,2]
[335143051,1723890668442,-500.0,0.00023834,2]
[335143052,1723890668452,-1302.46,0.00023834,2]
[335143053,1723890668461,-3815.52,0.00023834,2]
[335143054,1723890668472,-1463.19,0.00023834,2]
[335143055,1723890668481,-1313.81,0.00023834,2]
[335143056,1723890668491,-557.32,0.00023834,2]
[335143057,1723890668500,-229.06801649,0.00023834,2]
[335143058,1723890668510,-4587.93,0.00023834,2]
[335143059,1723890668519,-1281.48,0.00023834,2]
[335143060,1723890668529,-500.0,0.00023834,2]
[335143061,1723890668539,-1296.99,0.00023834,2]
[335143062,1723890668548,-500.0,0.00023834,2]
[335143063,1723890668558,-1380.37,0.00023834,2]
[335143064,1723890668568,-500.0,0.00023834,2]
[335143065,1723890668578,-3297.99,0.00023834,2]
[335143066,1723890668588,-500.0,0.00023834,2]
[335143067,1723890668598,-2369.1,0.00023834,2]
[335143068,1723890668608,-500.0,0.00023834,2]
[335143069,1723890668618,-3259.07,0.00023834,2]
[335143070,1723890668628,-500.0,0.00023834,2]
[335143071,1723890668637,-2059.73,0.00023834,2]
[335143072,1723890668647,-558.53,0.00023834,2]
[335143073,1723890668657,-500.0,0.00023834,2]
[335143074,1723890668666,-500.0,0.00023834,2]
[335143075,1723890668677,-500.0,0.00023834,2]
[335143076,1723890668687,-1089.27,0.00023834,2]
[335143077,1723890668696,-415.700869,0.00023834,2]
[335143078,1723890668706,-500.0,0.00023834,2]
[335143079,1723890668716,-4118.73,0.00023834,2]
[335143080,1723890668726,-537.86,0.00023834,2]
[335143081,1723890668736,-500.0,0.00023834,2]
[335143082,1723890668745,-500.0,0.00023835,2]
[335143083,1723890668755,-500.0,0.00023835,2]
[335143084,1723890668764,-500.0,0.00023835,2]
[335143085,1723890668773,-500.0,0.00023835,2]
[335143086,1723890668784,-500.0,0.00023835,2]
[335143087,1723890668794,-500.0,0.00023835,2]
[335143088,1723890668803,-500.0,0.00023835,2]
[335143089,1723890668812,-500.0,0.00023835,2]
[335143090,1723890668822,-500.0,0.00023835,2]
[335143091,1723890668831,-500.0,0.00023835,2]
[335143092,1723890668840,-500.0,0.00023835,2]
[335143093,1723890668850,-500.0,0.00023835,2]
[335143094,1723890668859,-500.0,0.00023835,2]
[335143095,1723890668869,-500.0,0.00023835,2]
[335143096,1723890668878,-500.0,0.00023835,2]
[335143097,1723890668887,-500.0,0.00023835,2]